[Event "Chess Festival Groningen 2023 | A"]
[Site "Groningen, Netherlands"]
[Date "2023.12.26"]
[Round "5.3"]
[White "Tiviakov, Sergei"]
[Black "De Winter, Arthur"]
[Result "1-0"]
[TimeControl "90min/40moves + 30min + 30sec/move"]
[WhiteElo "2536"]
[BlackElo "2405"]

1. e4 {[%clk 01:30:56]} {[%emt 00:00:02]} e5 {[%clk 01:30:56]} {[%emt
00:00:04]} 2. Nf3 {[%clk 01:31:19]} {[%emt 00:00:08]} Nc6 {[%clk 01:31:21]}
{[%emt 00:00:05]} 3. Bb5 {[%clk 01:31:42]} {[%emt 00:00:06]} a6 {[%clk
01:31:47]} {[%emt 00:00:04]} 4. Ba4 {[%clk 01:32:06]} {[%emt 00:00:07]} Nf6
{[%clk 01:32:12]} {[%emt 00:00:05]} 5. d3 {[%clk 01:32:10]} {[%emt 00:00:26]}
d6 {[%clk 01:32:36]} {[%emt 00:00:06]} 6. c3 {[%clk 01:31:07]} {[%emt
00:01:33]} g6 {[%clk 01:33:00]} {[%emt 00:00:06]} 7. O-O {[%clk 01:27:47]}
{[%emt 00:03:50]} Bg7 {[%clk 01:33:25]} {[%emt 00:00:05]} 8. Re1 {[%clk
01:25:36]} {[%emt 00:02:41]} O-O {[%clk 01:33:11]} {[%emt 00:00:44]} 9. Bg5
{[%clk 01:22:51]} {[%emt 00:03:15]} h6 {[%clk 01:31:36]} {[%emt 00:02:04]} 10.
Bh4 {[%clk 01:22:46]} {[%emt 00:00:35]} Bd7 {[%clk 01:28:10]} {[%emt 00:03:57]}
11. Nbd2 {[%clk 01:23:00]} {[%emt 00:00:16]} Qe8 {[%clk 01:27:20]} {[%emt
00:01:19]} 12. Nf1 {[%clk 01:19:16]} {[%emt 00:04:15]} Nh5 {[%clk 01:17:15]}
{[%emt 00:10:36]} 13. Ne3 {[%clk 01:19:00]} {[%emt 00:00:45]} Nf4 {[%clk
01:14:02]} {[%emt 00:03:43]} 14. Bb3 {[%clk 00:51:51]} {[%emt 00:27:39]} Kh8
{[%clk 01:08:32]} {[%emt 00:06:00]} 15. d4 {[%clk 00:48:03]} {[%emt 00:04:19]}
f6 {[%clk 01:06:14]} {[%emt 00:02:47]} 16. Bg3 {[%clk 00:36:33]} {[%emt
00:12:01]} Nh5 {[%clk 00:56:48]} {[%emt 00:09:55]} 17. Nd5 {[%clk 00:36:44]}
{[%emt 00:00:19]} Rc8 {[%clk 00:56:49]} {[%emt 00:00:29]} 18. Nh4 {[%clk
00:35:25]} {[%emt 00:01:49]} Kh7 {[%clk 00:49:01]} {[%emt 00:08:18]} 19. f4
{[%clk 00:22:34]} {[%emt 00:13:22]} exf4 {[%clk 00:34:46]} {[%emt 00:14:44]} 20.
Nxf4 {[%clk 00:22:09]} {[%emt 00:00:55]} Nxf4 {[%clk 00:30:33]} {[%emt
00:04:44]} 21. Bxf4 {[%clk 00:22:33]} {[%emt 00:00:05]} Ne7 {[%clk 00:27:37]}
{[%emt 00:03:26]} 22. Bg3 {[%clk 00:22:04]} {[%emt 00:00:59]} Qd8 {[%clk
00:25:12]} {[%emt 00:02:55]} 23. Qf3 {[%clk 00:18:37]} {[%emt 00:03:57]} b5
{[%clk 00:21:48]} {[%emt 00:03:55]} 24. Bc2 {[%clk 00:17:50]} {[%emt 00:01:16]}
f5 {[%clk 00:21:27]} {[%emt 00:00:52]} 25. exf5 {[%clk 00:16:54]} {[%emt
00:01:26]} Nxf5 {[%clk 00:21:33]} {[%emt 00:00:24]} 26. Nxf5 {[%clk 00:16:28]}
{[%emt 00:00:56]} Bxf5 {[%clk 00:21:57]} {[%emt 00:00:06]} 27. Bxf5 {[%clk
00:16:54]} {[%emt 00:00:04]} Rxf5 {[%clk 00:22:21]} {[%emt 00:00:05]} 28. Qc6
{[%clk 00:17:17]} {[%emt 00:00:08]} a5 {[%clk 00:21:31]} {[%emt 00:01:21]} 29.
Re6 {[%clk 00:13:48]} {[%emt 00:03:58]} b4 {[%clk 00:14:32]} {[%emt 00:07:30]}
30. Rae1 {[%clk 00:13:39]} {[%emt 00:00:38]} Qf8 {[%clk 00:13:50]} {[%emt
00:01:12]} 31. h4 {[%clk 00:10:56]} {[%emt 00:03:14]} Rf6 {[%clk 00:08:56]}
{[%emt 00:05:23]} 32. Qd7 {[%clk 00:08:48]} {[%emt 00:02:38]} Qd8 {[%clk
00:03:33]} {[%emt 00:05:53]} 33. Re7 {[%clk 00:08:56]} {[%emt 00:00:22]} Qxd7
{[%clk 00:04:01]} {[%emt 00:00:02]} 34. Rxd7 {[%clk 00:09:21]} {[%emt
00:00:06]} Kg8 {[%clk 00:03:49]} {[%emt 00:00:41]} 35. Ree7 {[%clk 00:09:45]}
{[%emt 00:00:07]} Bf8 {[%clk 00:04:13]} {[%emt 00:00:06]} 36. Rxc7 {[%clk
00:10:11]} {[%emt 00:00:05]} Rb8 {[%clk 00:02:09]} {[%emt 00:02:33]} 37. Rb7
{[%clk 00:09:17]} {[%emt 00:01:25]} Rc8 {[%clk 00:01:50]} {[%emt 00:00:49]} 38.
Rec7 {[%clk 00:09:25]} {[%emt 00:00:22]} Rxc7 {[%clk 00:01:51]} {[%emt
00:00:28]} 39. Rxc7 {[%clk 00:09:53]} {[%emt 00:00:02]} Rf5 {[%clk 00:01:29]}
{[%emt 00:00:52]} 40. Rc6 {[%clk 00:06:36]} {[%emt 00:03:47]} Rd5 {[%clk
00:01:11]} {[%emt 00:00:47]} 41. Kf2 {[%clk 00:06:40]} {[%emt 00:00:28]} Kf7
{[%clk 00:00:54]} {[%emt 00:00:45]} 42. Ke3 {[%clk 00:06:16]} {[%emt 00:00:55]}
bxc3 {[%clk 00:27:19]} {[%emt 00:04:05]} 43. bxc3 {[%clk 00:36:41]} {[%emt
00:00:05]} Rb5 {[%clk 00:27:43]} {[%emt 00:00:06]} 44. Bxd6 {[%clk 00:36:55]}
{[%emt 00:00:16]} Bxd6 {[%clk 00:27:56]} {[%emt 00:00:17]} 45. Rxd6 {[%clk
00:37:24]} {[%emt 00:00:02]} Rb2 {[%clk 00:28:20]} {[%emt 00:00:05]} 46. h5
{[%clk 00:36:19]} {[%emt 00:01:36]} gxh5 {[%clk 00:28:30]} {[%emt 00:00:19]} 47.
Rxh6 {[%clk 00:36:41]} {[%emt 00:00:09]} Rxg2 {[%clk 00:28:39]} {[%emt
00:00:20]} 48. Rxh5 {[%clk 00:37:07]} {[%emt 00:00:04]} Rxa2 {[%clk 00:29:05]}
{[%emt 00:00:04]} 49. Kd3 {[%clk 00:35:44]} {[%emt 00:01:54]} Ke6 {[%clk
00:27:58]} {[%emt 00:01:35]} 50. Kc4 {[%clk 00:36:06]} {[%emt 00:00:09]} Kd6
{[%clk 00:25:24]} {[%emt 00:03:04]} 51. Rh6+ {[%clk 00:36:03]} {[%emt
00:00:34]} Kd7 {[%clk 00:25:12]} {[%emt 00:00:40]} 52. Kc5 {[%clk 00:32:28]}
{[%emt 00:04:07]} a4 {[%clk 00:24:37]} {[%emt 00:01:06]} 53. Ra6 {[%clk
00:29:35]} {[%emt 00:03:22]} Kc7 {[%clk 00:23:12]} {[%emt 00:01:54]} 54. Kb4
{[%clk 00:29:51]} {[%emt 00:00:15]} 1-0

[Event "Chess Festival Groningen 2023 | A"]
[Site "Groningen, Netherlands"]
[Date "2023.12.26"]
[Round "5.4"]
[White "Maatman, Nick"]
[Black "Reinderman, Dimitri"]
[Result "1/2-1/2"]
[TimeControl "90min/40moves + 30min + 30sec/move"]
[WhiteElo "2371"]
[BlackElo "2580"]

1. d4 {[%clk 01:30:57]} {[%emt 00:00:02]} f5 {[%clk 01:30:54]} {[%emt
00:00:07]} 2. Bg5 {[%clk 01:31:23]} {[%emt 00:00:04]} g6 {[%clk 01:30:49]}
{[%emt 00:00:36]} 3. Nc3 {[%clk 01:31:48]} {[%emt 00:00:05]} Bg7 {[%clk
01:31:01]} {[%emt 00:00:18]} 4. h4 {[%clk 01:30:51]} {[%emt 00:01:25]} h6
{[%clk 01:28:23]} {[%emt 00:03:10]} 5. Bf4 {[%clk 01:27:33]} {[%emt 00:03:48]}
Nf6 {[%clk 01:28:44]} {[%emt 00:00:09]} 6. Qd3 {[%clk 01:27:56]} {[%emt
00:00:06]} d6 {[%clk 01:28:35]} {[%emt 00:00:40]} 7. Qg3 {[%clk 01:28:18]}
{[%emt 00:00:07]} O-O {[%clk 01:28:35]} {[%emt 00:00:30]} 8. Qxg6 {[%clk
01:28:31]} {[%emt 00:00:17]} Ng4 {[%clk 01:28:27]} {[%emt 00:00:38]} 9. Bg5
{[%clk 01:28:56]} {[%emt 00:00:06]} hxg5 {[%clk 01:22:56]} {[%emt 00:06:02]} 10.
hxg5 {[%clk 01:27:07]} {[%emt 00:02:18]} e6 {[%clk 01:23:04]} {[%emt 00:00:22]}
11. e4 {[%clk 01:10:15]} {[%emt 00:17:21]} c6 {[%clk 01:18:31]} {[%emt
00:05:04]} 12. exf5 {[%clk 00:51:56]} {[%emt 00:18:49]} exf5 {[%clk 01:17:53]}
{[%emt 00:01:09]} 13. O-O-O {[%clk 00:50:06]} {[%emt 00:02:20]} Rf7 {[%clk
01:12:38]} {[%emt 00:05:45]} 14. Re1 {[%clk 00:42:45]} {[%emt 00:07:50]} Re7
{[%clk 01:08:24]} {[%emt 00:04:45]} 15. Rxe7 {[%clk 00:32:12]} {[%emt
00:11:02]} Qxe7 {[%clk 01:08:49]} {[%emt 00:00:05]} 16. Nf3 {[%clk 00:32:37]}
{[%emt 00:00:05]} Qf7 {[%clk 00:47:14]} {[%emt 00:22:05]} 17. Qxd6 {[%clk
00:29:41]} {[%emt 00:03:25]} Be6 {[%clk 00:45:42]} {[%emt 00:02:03]} 18. Ne5
{[%clk 00:14:41]} {[%emt 00:15:30]} Nxe5 {[%clk 00:37:34]} {[%emt 00:08:39]} 19.
dxe5 {[%clk 00:15:07]} {[%emt 00:00:03]} Nd7 {[%clk 00:37:33]} {[%emt
00:00:31]} 20. f4 {[%clk 00:15:25]} {[%emt 00:00:12]} Bf8 {[%clk 00:37:21]}
{[%emt 00:00:42]} 21. Qd3 {[%clk 00:15:11]} {[%emt 00:00:45]} Nc5 {[%clk
00:34:00]} {[%emt 00:03:51]} 22. Qh3 {[%clk 00:15:02]} {[%emt 00:00:38]} Bg7
{[%clk 00:34:06]} {[%emt 00:00:25]} 23. Be2 {[%clk 00:11:02]} {[%emt 00:04:29]}
Rd8 {[%clk 00:31:32]} {[%emt 00:03:05]} 24. Bh5 {[%clk 00:10:15]} {[%emt
00:01:17]} Qe7 {[%clk 00:30:20]} {[%emt 00:01:42]} 25. Bg6 {[%clk 00:09:52]}
{[%emt 00:00:53]} Rd4 {[%clk 00:26:04]} {[%emt 00:04:47]} 26. Qe3 {[%clk
00:07:18]} {[%emt 00:03:03]} Rc4 {[%clk 00:14:11]} {[%emt 00:12:23]} 27. g4
{[%clk 00:05:33]} {[%emt 00:02:15]} Ne4 {[%clk 00:11:22]} {[%emt 00:03:20]} 28.
gxf5 {[%clk 00:04:25]} {[%emt 00:01:38]} Nxc3 {[%clk 00:08:23]} {[%emt
00:03:30]} 29. fxe6 {[%clk 00:03:58]} {[%emt 00:00:57]} Nd5 {[%clk 00:05:51]}
{[%emt 00:03:01]} 30. Qxa7 {[%clk 00:03:58]} {[%emt 00:00:30]} Rxf4 {[%clk
00:03:55]} {[%emt 00:02:26]} 31. Bf7+ {[%clk 00:04:24]} {[%emt 00:00:04]} Rxf7
{[%clk 00:04:18]} {[%emt 00:00:07]} 32. exf7+ {[%clk 00:04:52]} {[%emt
00:00:03]} Kxf7 {[%clk 00:02:53]} {[%emt 00:01:55]} 33. Rf1+ {[%clk 00:03:34]}
{[%emt 00:01:47]} Ke6 {[%clk 00:01:45]} {[%emt 00:01:39]} 34. Qg1 {[%clk
00:03:04]} {[%emt 00:00:59]} Bxe5 {[%clk 00:01:56]} {[%emt 00:00:19]} 35. Qg4+
{[%clk 00:02:36]} {[%emt 00:00:57]} Kd6 {[%clk 00:02:23]} {[%emt 00:00:04]} 36.
g6 {[%clk 00:02:20]} {[%emt 00:00:47]} Kc5 {[%clk 00:01:01]} {[%emt 00:01:52]}
37. Kb1 {[%clk 00:01:45]} {[%emt 00:01:04]} Bg7 {[%clk 00:00:57]} {[%emt
00:00:34]} 38. Qg1+ {[%clk 00:01:20]} {[%emt 00:00:55]} Bd4 {[%clk 00:01:10]}
{[%emt 00:00:18]} 39. Qg3 {[%clk 00:01:31]} {[%emt 00:00:18]} Qe2 {[%clk
00:00:53]} {[%emt 00:00:48]} 40. Re1 {[%clk 00:00:48]} {[%emt 00:01:13]} Qd2
{[%clk 00:01:00]} {[%emt 00:00:23]} 41. Rc1 {[%clk 00:21:09]} {[%emt 00:10:08]}
Bg7 {[%clk 00:26:50]} {[%emt 00:04:41]} 42. Qe1 {[%clk 00:14:25]} {[%emt
00:07:14]} Qd4 {[%clk 00:25:18]} {[%emt 00:02:02]} 43. Qa5+ {[%clk 00:13:50]}
{[%emt 00:01:05]} Kd6 {[%clk 00:24:30]} {[%emt 00:01:18]} 44. Qd8+ {[%clk
00:13:06]} {[%emt 00:01:13]} Kc5 {[%clk 00:24:30]} {[%emt 00:00:31]} 45. Qa5+
{[%clk 00:13:32]} {[%emt 00:00:04]} Kd6 {[%clk 00:24:37]} {[%emt 00:00:22]} 46.
Qd8+ {[%clk 00:13:49]} {[%emt 00:00:14]} Kc5 {[%clk 00:24:55]} {[%emt
00:00:12]} 47. Qa5+ {[%emt 00:00:06]} 1/2-1/2

[Event "Chess Festival Groningen 2023 | A"]
[Site "Groningen, Netherlands"]
[Date "2023.12.26"]
[Round "5.5"]
[White "Bulmaga, Irina"]
[Black "Kanov, Nikola"]
[Result "0-1"]
[TimeControl "90min/40moves + 30min + 30sec/move"]
[WhiteElo "2439"]
[BlackElo "2371"]

1. e4 {[%emt 00:00:16]} c5 {[%clk 01:30:48]} 2. Nf3 {[%clk 01:31:17]} {[%emt
00:00:08]} e6 {[%clk 01:31:05]} {[%emt 00:00:13]} 3. c3 {[%clk 01:31:38]}
{[%emt 00:00:09]} d5 {[%clk 01:31:15]} {[%emt 00:00:21]} 4. e5 {[%clk
01:31:52]} {[%emt 00:00:15]} d4 {[%clk 01:31:00]} {[%emt 00:00:45]} 5. d3
{[%clk 01:31:58]} {[%emt 00:00:23]} Nc6 {[%clk 01:30:07]} {[%emt 00:01:24]} 6.
g3 {[%clk 01:32:12]} {[%emt 00:00:15]} b6 {[%clk 01:21:42]} {[%emt 00:08:56]} 7.
Bg2 {[%clk 01:29:38]} {[%emt 00:03:03]} Bb7 {[%clk 01:21:58]} {[%emt 00:00:15]}
8. O-O {[%clk 01:28:48]} {[%emt 00:01:20]} Qd7 {[%clk 01:21:23]} {[%emt
00:01:06]} 9. cxd4 {[%clk 01:18:57]} {[%emt 00:10:20]} Nxd4 {[%clk 01:20:27]}
{[%emt 00:01:26]} 10. Nxd4 {[%clk 01:17:12]} {[%emt 00:02:15]} Bxg2 {[%clk
01:18:39]} {[%emt 00:02:18]} 11. Kxg2 {[%clk 01:17:35]} {[%emt 00:00:07]} Qxd4
{[%clk 01:17:48]} {[%emt 00:01:22]} 12. Nc3 {[%clk 01:17:01]} {[%emt 00:01:04]}
Qd7 {[%clk 01:09:23]} {[%emt 00:08:54]} 13. Qf3 {[%clk 01:08:42]} {[%emt
00:08:49]} Rd8 {[%clk 01:02:58]} {[%emt 00:06:55]} 14. Rd1 {[%clk 01:02:10]}
{[%emt 00:07:01]} Ne7 {[%clk 01:02:03]} {[%emt 00:01:26]} 15. Bg5 {[%clk
00:56:37]} {[%emt 00:06:02]} Rc8 {[%clk 01:01:50]} {[%emt 00:00:44]} 16. d4
{[%clk 00:51:50]} {[%emt 00:05:17]} cxd4 {[%clk 00:59:57]} {[%emt 00:02:23]} 17.
Rac1 {[%clk 00:34:05]} {[%emt 00:18:15]} Nc6 {[%clk 00:57:45]} {[%emt
00:02:42]} 18. Qe4 {[%clk 00:18:29]} {[%emt 00:16:05]} Bc5 {[%clk 00:49:01]}
{[%emt 00:09:14]} 19. Ne2 {[%clk 00:17:16]} {[%emt 00:01:43]} O-O {[%clk
00:47:39]} {[%emt 00:01:53]} 20. Be3 {[%clk 00:15:09]} {[%emt 00:02:36]} f5
{[%clk 00:44:07]} {[%emt 00:04:03]} 21. exf6 {[%clk 00:14:48]} {[%emt
00:00:50]} e5 {[%clk 00:43:56]} {[%emt 00:00:42]} 22. fxg7 {[%clk 00:09:33]}
{[%emt 00:05:45]} Qxg7 {[%clk 00:42:26]} {[%emt 00:02:00]} 23. Bd2 {[%clk
00:07:50]} {[%emt 00:02:13]} d3 {[%clk 00:40:57]} {[%emt 00:01:59]} 24. Qxd3
{[%clk 00:07:57]} {[%emt 00:00:23]} Rxf2+ {[%clk 00:40:55]} {[%emt 00:00:32]}
25. Kh1 {[%clk 00:08:13]} {[%emt 00:00:13]} Nd4 {[%clk 00:39:12]} {[%emt
00:02:14]} 26. Nxd4 {[%clk 00:01:37]} {[%emt 00:07:06]} Qb7+ {[%clk 00:39:00]}
{[%emt 00:00:43]} 0-1

[Event "Chess Festival Groningen 2023 | A"]
[Site "Groningen, Netherlands"]
[Date "2023.12.26"]
[Round "5.6"]
[White "Gomes, Mary Ann"]
[Black "Panda, Sambit"]
[Result "0-1"]
[TimeControl "90min/40moves + 30min + 30sec/move"]
[BlackFideId "25091794"]
[WhiteElo "2332"]
[BlackElo "2404"]

1. Nf3 {[%clk 01:30:44]} {[%emt 00:00:15]} d5 {[%clk 01:30:42]} {[%emt
00:00:18]} 2. g3 {[%clk 01:31:06]} {[%emt 00:00:08]} c5 {[%clk 01:30:33]}
{[%emt 00:00:39]} 3. Bg2 {[%clk 01:30:50]} {[%emt 00:00:46]} Nc6 {[%clk
01:30:54]} {[%emt 00:00:09]} 4. O-O {[%clk 01:30:25]} {[%emt 00:00:55]} e5
{[%clk 01:31:16]} {[%emt 00:00:07]} 5. d3 {[%clk 01:30:52]} {[%emt 00:00:04]}
Be7 {[%clk 01:31:20]} {[%emt 00:00:26]} 6. Nbd2 {[%clk 01:28:33]} {[%emt
00:02:49]} Be6 {[%clk 01:22:48]} {[%emt 00:09:02]} 7. e4 {[%clk 01:19:29]}
{[%emt 00:09:33]} d4 {[%clk 01:21:17]} {[%emt 00:02:01]} 8. Nc4 {[%clk
01:19:52]} {[%emt 00:00:08]} Qc7 {[%clk 01:19:37]} {[%emt 00:02:10]} 9. a4
{[%clk 01:20:03]} {[%emt 00:00:20]} h5 {[%clk 01:18:23]} {[%emt 00:01:43]} 10.
Ng5 {[%clk 01:06:36]} {[%emt 00:13:56]} Bxg5 {[%clk 01:06:25]} {[%emt
00:12:28]} 11. Bxg5 {[%clk 01:06:59]} {[%emt 00:00:07]} f6 {[%clk 01:06:38]}
{[%emt 00:00:17]} 12. Bd2 {[%clk 01:07:24]} {[%emt 00:00:05]} h4 {[%clk
01:02:42]} {[%emt 00:04:27]} 13. f4 {[%clk 01:07:44]} {[%emt 00:00:09]} hxg3
{[%clk 00:47:02]} {[%emt 00:16:10]} 14. hxg3 {[%clk 01:08:08]} {[%emt
00:00:07]} O-O-O {[%clk 00:45:40]} {[%emt 00:01:52]} 15. b3 {[%clk 01:08:22]}
{[%emt 00:00:17]} g6 {[%clk 00:38:39]} {[%emt 00:07:31]} 16. fxe5 {[%clk
00:54:38]} {[%emt 00:14:14]} Qh7 {[%clk 00:33:41]} {[%emt 00:05:27]} 17. Kf2
{[%clk 00:32:27]} {[%emt 00:22:41]} fxe5 {[%clk 00:28:54]} {[%emt 00:05:18]} 18.
Ke1 {[%clk 00:31:55]} {[%emt 00:01:01]} Nh6 {[%clk 00:25:37]} {[%emt 00:03:47]}
19. Rf6 {[%clk 00:24:19]} {[%emt 00:08:06]} Bg4 {[%clk 00:23:29]} {[%emt
00:02:38]} 20. Bf3 {[%clk 00:24:16]} {[%emt 00:00:32]} Bd7 {[%clk 00:23:00]}
{[%emt 00:01:00]} 21. Qe2 {[%clk 00:16:41]} {[%emt 00:08:05]} Rdf8 {[%clk
00:20:02]} {[%emt 00:03:28]} 22. Bg5 {[%clk 00:13:16]} {[%emt 00:03:54]} Qg7
{[%clk 00:17:42]} {[%emt 00:02:50]} 23. Rxf8+ {[%clk 00:13:00]} {[%emt
00:00:46]} Rxf8 {[%clk 00:16:37]} {[%emt 00:01:35]} 24. Qh2 {[%clk 00:10:48]}
{[%emt 00:02:42]} Nf7 {[%clk 00:15:05]} {[%emt 00:02:03]} 25. Bd2 {[%clk
00:10:40]} {[%emt 00:00:37]} Qf6 {[%clk 00:14:03]} {[%emt 00:01:32]} 26. Be2
{[%clk 00:09:39]} {[%emt 00:01:32]} Ng5 {[%clk 00:06:54]} {[%emt 00:07:40]} 27.
Kd1 {[%clk 00:10:01]} {[%emt 00:00:08]} Rh8 {[%clk 00:04:54]} {[%emt 00:02:29]}
28. Qg2 {[%clk 00:10:00]} {[%emt 00:00:30]} Bh3 {[%clk 00:05:17]} {[%emt
00:00:08]} 29. Bxg5 {[%clk 00:05:12]} {[%emt 00:05:18]} Qxg5 {[%clk 00:04:23]}
{[%emt 00:01:24]} 30. Qf3 {[%clk 00:03:02]} {[%emt 00:02:39]} Kc7 {[%clk
00:03:13]} {[%emt 00:01:41]} 31. a5 {[%clk 00:01:49]} {[%emt 00:01:44]} Bg4
{[%clk 00:02:33]} {[%emt 00:01:09]} 32. Qg2 {[%clk 00:01:17]} {[%emt 00:01:02]}
Rh3 {[%clk 00:01:34]} {[%emt 00:01:29]} 33. Ke1 {[%clk 00:00:33]} {[%emt
00:01:15]} Be6 {[%clk 00:00:43]} {[%emt 00:01:20]} 34. Kf2 {[%clk 00:00:36]}
{[%emt 00:00:27]} Qh6 {[%clk 00:00:56]} {[%emt 00:00:16]} 35. Kg1 {[%clk
00:00:36]} {[%emt 00:00:29]} Bxc4 {[%clk 00:00:40]} {[%emt 00:00:47]} 36. bxc4
{[%clk 00:01:02]} {[%emt 00:00:04]} Qe3+ {[%clk 00:01:05]} {[%emt 00:00:05]} 37.
Kf1 {[%clk 00:01:20]} {[%emt 00:00:12]} Rxg3 {[%clk 00:00:41]} {[%emt
00:00:54]} 38. Qf2 {[%clk 00:00:55]} {[%emt 00:00:55]} Qf4 {[%clk 00:01:02]}
{[%emt 00:00:08]} 39. Qxf4 {[%clk 00:00:45]} {[%emt 00:00:40]} exf4 {[%clk
00:01:26]} {[%emt 00:00:07]} 40. Kf2 {[%clk 00:01:11]} {[%emt 00:00:04]} g5
{[%clk 00:00:43]} {[%emt 00:01:13]} 41. a6 {[%clk 00:26:16]} {[%emt 00:05:25]}
bxa6 {[%clk 00:28:59]} {[%emt 00:02:13]} 42. Rxa6 {[%clk 00:26:38]} {[%emt
00:00:07]} Re3 {[%clk 00:25:29]} {[%emt 00:04:00]} 43. Ra1 {[%clk 00:26:41]}
{[%emt 00:00:27]} a5 {[%clk 00:25:05]} {[%emt 00:00:55]} 44. Rg1 {[%clk
00:26:46]} {[%emt 00:00:24]} Rg3 {[%clk 00:25:14]} {[%emt 00:00:21]} 45. Ra1
{[%clk 00:26:34]} {[%emt 00:00:42]} Kb6 {[%clk 00:25:22]} {[%emt 00:00:23]} 46.
Rb1+ {[%clk 00:26:37]} {[%emt 00:00:27]} Nb4 {[%clk 00:25:12]} {[%emt
00:00:39]} 47. Bf3 {[%clk 00:26:41]} {[%emt 00:00:26]} g4 {[%clk 00:25:02]}
{[%emt 00:00:41]} 48. Bd1 {[%clk 00:25:59]} {[%emt 00:01:12]} a4 {[%clk
00:20:26]} {[%emt 00:05:07]} 49. Ra1 {[%clk 00:25:47]} {[%emt 00:00:41]} Ka5
{[%clk 00:20:51]} {[%emt 00:00:05]} 50. e5 {[%clk 00:26:09]} {[%emt 00:00:07]}
Re3 {[%clk 00:20:53]} {[%emt 00:00:28]} 51. e6 {[%clk 00:23:36]} {[%emt
00:03:03]} g3+ {[%clk 00:19:55]} {[%emt 00:01:28]} 0-1

[Event "Chess Festival Groningen 2023 | A"]
[Site "Groningen, Netherlands"]
[Date "2023.12.26"]
[Round "5.7"]
[White "Beerdsen, Thomas"]
[Black "Aarav, Dengla"]
[Result "0-1"]
[TimeControl "90min/40moves + 30min + 30sec/move"]
[BlackFideId "45059756"]
[WhiteElo "2511"]
[BlackElo "2382"]

1. e4 {[%clk 01:30:56]} {[%emt 00:00:03]} c5 {[%clk 01:30:37]} {[%emt
00:00:23]} 2. Nf3 {[%clk 01:31:18]} {[%emt 00:00:08]} d6 {[%clk 01:30:56]}
{[%emt 00:00:11]} 3. d4 {[%clk 01:31:41]} {[%emt 00:00:07]} cxd4 {[%clk
01:30:58]} {[%emt 00:00:29]} 4. Nxd4 {[%clk 01:32:04]} {[%emt 00:00:06]} Nf6
{[%clk 01:31:12]} {[%emt 00:00:16]} 5. Nc3 {[%clk 01:32:26]} {[%emt 00:00:08]}
Bd7 {[%clk 01:30:44]} {[%emt 00:00:58]} 6. Bc4 {[%clk 01:30:42]} {[%emt
00:02:14]} Nc6 {[%clk 01:30:28]} {[%emt 00:00:47]} 7. Bb3 {[%clk 01:22:50]}
{[%emt 00:08:21]} g6 {[%clk 01:28:19]} {[%emt 00:02:41]} 8. f3 {[%clk
01:21:08]} {[%emt 00:02:11]} Bg7 {[%clk 01:27:59]} {[%emt 00:00:50]} 9. Be3
{[%clk 01:21:30]} {[%emt 00:00:07]} O-O {[%clk 01:16:07]} {[%emt 00:12:22]} 10.
Qd2 {[%clk 01:20:34]} {[%emt 00:01:26]} Rc8 {[%clk 01:15:47]} {[%emt 00:00:51]}
11. O-O-O {[%clk 01:19:25]} {[%emt 00:01:38]} Ne5 {[%clk 01:11:05]} {[%emt
00:05:13]} 12. Kb1 {[%clk 01:19:41]} {[%emt 00:00:13]} Nc4 {[%clk 00:57:28]}
{[%emt 00:14:08]} 13. Bxc4 {[%clk 01:20:04]} {[%emt 00:00:08]} Rxc4 {[%clk
00:57:53]} {[%emt 00:00:05]} 14. h4 {[%clk 01:14:54]} {[%emt 00:05:39]} h5
{[%clk 00:57:30]} {[%emt 00:00:53]} 15. g4 {[%clk 01:14:08]} {[%emt 00:01:17]}
Rxc3 {[%clk 00:39:24]} {[%emt 00:18:36]} 16. Qxc3 {[%clk 01:13:27]} {[%emt
00:01:10]} hxg4 {[%clk 00:39:49]} {[%emt 00:00:06]} 17. h5 {[%clk 00:43:45]}
{[%emt 00:30:12]} Nxh5 {[%clk 00:26:29]} {[%emt 00:13:50]} 18. fxg4 {[%clk
00:38:42]} {[%emt 00:05:32]} Ng3 {[%clk 00:15:10]} {[%emt 00:11:50]} 19. Rh2
{[%clk 00:22:49]} {[%emt 00:16:22]} Bxg4 {[%clk 00:09:31]} {[%emt 00:06:10]} 20.
Re1 {[%clk 00:11:40]} {[%emt 00:11:39]} Nxe4 {[%clk 00:09:15]} {[%emt
00:00:47]} 21. Qd3 {[%clk 00:11:53]} {[%emt 00:00:15]} Qa5 {[%clk 00:07:00]}
{[%emt 00:02:46]} 22. Reh1 {[%clk 00:11:01]} {[%emt 00:01:21]} Qe5 {[%clk
00:06:08]} {[%emt 00:01:23]} 23. Rh7 {[%clk 00:06:32]} {[%emt 00:04:59]} Bh5
{[%clk 00:05:19]} {[%emt 00:01:20]} 24. Rxg7+ {[%clk 00:04:57]} {[%emt
00:02:04]} Kxg7 {[%clk 00:05:45]} {[%emt 00:00:04]} 25. Nc6 {[%clk 00:04:46]}
{[%emt 00:00:40]} Qe6 {[%clk 00:04:57]} {[%emt 00:01:18]} 26. Nd4 {[%clk
00:04:53]} {[%emt 00:00:23]} Qd5 {[%clk 00:04:59]} {[%emt 00:00:29]} 27. Rf1
{[%clk 00:03:52]} {[%emt 00:01:30]} Kh7 {[%clk 00:03:02]} {[%emt 00:02:28]} 28.
b3 {[%clk 00:00:34]} {[%emt 00:03:48]} Nc5 {[%clk 00:01:58]} {[%emt 00:01:34]}
29. Qc3 {[%clk 00:00:55]} {[%emt 00:00:09]} e5 {[%clk 00:02:07]} {[%emt
00:00:22]} 30. Nf5 {[%clk 00:00:57]} {[%emt 00:00:27]} Ne4 {[%clk 00:01:20]}
{[%emt 00:01:17]} 31. Qe1 {[%clk 00:00:51]} {[%emt 00:00:36]} Qd1+ {[%clk
00:01:30]} {[%emt 00:00:20]} 32. Qxd1 {[%clk 00:01:15]} {[%emt 00:00:06]} Bxd1
{[%clk 00:01:59]} {[%emt 00:00:02]} 33. Nxd6 {[%clk 00:00:47]} {[%emt
00:00:57]} Bxc2+ {[%clk 00:02:01]} {[%emt 00:00:28]} 34. Kxc2 {[%clk 00:01:12]}
{[%emt 00:00:05]} Nxd6 {[%clk 00:02:24]} {[%emt 00:00:07]} 35. Bxa7 {[%clk
00:01:08]} {[%emt 00:00:34]} Ra8 {[%clk 00:02:53]} {[%emt 00:00:02]} 36. Be3
{[%clk 00:00:51]} {[%emt 00:00:46]} Rxa2+ {[%clk 00:02:43]} {[%emt 00:00:41]}
37. Kc3 {[%clk 00:01:15]} {[%emt 00:00:05]} Ra6 {[%clk 00:00:42]} {[%emt
00:02:31]} 38. Kb4 {[%clk 00:01:26]} {[%emt 00:00:18]} Kg7 {[%clk 00:00:45]}
{[%emt 00:00:28]} 39. Rc1 {[%clk 00:01:07]} {[%emt 00:00:49]} Kf6 {[%clk
00:00:46]} {[%emt 00:00:30]} 40. Rc7 {[%clk 00:01:25]} {[%emt 00:00:11]} Ke6
{[%clk 00:00:42]} {[%emt 00:00:35]} 41. Bc5 {[%clk 00:01:46]} {[%emt 00:00:08]}
e4 {[%clk 00:00:47]} {[%emt 00:00:26]} 42. Bxd6 {[%clk 00:01:40]} {[%emt
00:00:35]} Rxd6 {[%clk 00:28:59]} {[%emt 00:02:19]} 43. Kc5 {[%clk 00:31:59]}
{[%emt 00:00:11]} Rc6+ {[%clk 00:29:23]} {[%emt 00:00:06]} 0-1